fUSD/lending_fUSD_20240423
["ID","MTS","AMOUNT","RATE_DAILY","PERIOD"]
[323300031,1713881449487,-500.0,0.00012015,2]
[323300032,1713881449496,-237.65803823,0.00012015,2]
[323300033,1713881449505,-796.76,0.00012015,2]
[323300034,1713881449514,-500.0,0.00012015,2]
[323300035,1713881449523,-522.07,0.00012015,2]
[323300036,1713881449532,-21121.8,0.00012015,2]
[323300037,1713881449540,-500.0,0.00012015,2]
[323300038,1713881449549,-500.0,0.00012015,2]
[323300039,1713881449558,-500.0,0.00012015,2]
[323300040,1713881449567,-500.0,0.00012015,2]
[323300041,1713881449576,-1009.56,0.00012015,2]
[323300042,1713881449585,-500.0,0.00012015,2]
[323300043,1713881449594,-500.0,0.00012015,2]
[323300044,1713881449603,-765.59,0.00012015,2]
[323300045,1713881449612,-2492.2,0.00012015,2]
[323300046,1713881449621,-500.0,0.00012015,2]
[323300047,1713881449629,-500.0,0.00012015,2]
[323300048,1713881449639,-508.32,0.00012015,2]
[323300049,1713881449657,-1145.23,0.00012015,2]
[323300050,1713881449668,-500.0,0.00012015,2]
[323300051,1713881449678,-500.0,0.00012015,2]
[323300052,1713881449687,-1230.19,0.00012015,2]
[323300053,1713881449696,-500.0,0.00012015,2]
[323300054,1713881449705,-757.79,0.00012015,2]
[323300055,1713881449714,-500.0,0.00012015,2]
[323300056,1713881449723,-447.96547357,0.00012015,2]
[323300057,1713881449732,-500.0,0.00012015,2]
[323300058,1713881449742,-500.0,0.00012015,2]
[323300059,1713881449753,-666.5,0.00012015,2]
[323300060,1713881449762,-500.0,0.00012015,2]
[323300061,1713881449772,-500.0,0.00012015,2]
[323300062,1713881449782,-500.0,0.00012015,2]
[323300063,1713881449791,-500.0,0.00012015,2]
[323300064,1713881449800,-500.0,0.00012015,2]
[323300065,1713881449809,-500.0,0.00012015,2]
[323300066,1713881449818,-1000.0,0.00012015,2]
[323300067,1713881449828,-874.78081016,0.00012015,2]
[323300068,1713881449844,-98.58918984,0.00012015,2]
[323300069,1713881449854,-558.76,0.00012015,2]
[323300070,1713881449863,-521.67,0.00012015,2]
[323300071,1713881449871,-500.0,0.00012015,2]
[323300072,1713881449880,-500.0,0.00012015,2]
[323300073,1713881449889,-500.0,0.00012015,2]
[323300074,1713881449899,-500.0,0.00012015,2]
[323300075,1713881449908,-500.0,0.00012015,2]
[323300076,1713881449917,-500.0,0.00012015,2]
[323300077,1713881449927,-500.0,0.00012015,2]
[323300078,1713881449936,-500.0,0.00012015,2]
[323300079,1713881449945,-500.0,0.00012015,2]
[323300080,1713881449954,-1465.1,0.00012015,2]
[323300081,1713881449963,-500.0,0.00012015,2]
[323300082,1713881449972,-500.0,0.00012015,2]
[323300083,1713881449981,-500.0,0.00012015,2]
[323300084,1713881449991,-1495.47,0.00012015,2]
[323300085,1713881450001,-500.0,0.00012015,2]
[323300086,1713881450010,-1679.97,0.00012015,2]
[323300087,1713881450020,-500.0,0.00012015,2]
[323300088,1713881450029,-500.0,0.00012015,2]
[323300089,1713881450038,-500.0,0.00012015,2]
[323300090,1713881450047,-500.0,0.00012015,2]
[323300091,1713881450056,-500.0,0.00012015,2]
[323300092,1713881450065,-500.0,0.00012015,2]
[323300093,1713881450074,-568.04,0.00012015,2]
[323300094,1713881450083,-500.0,0.00012015,2]
[323300095,1713881450092,-500.0,0.00012015,2]
[323300096,1713881450101,-500.0,0.00012015,2]
[323300097,1713881450111,-500.0,0.00012015,2]
[323300098,1713881450120,-500.0,0.00012015,2]
[323300099,1713881450129,-500.0,0.00012015,2]
[323300100,1713881450138,-500.0,0.00012015,2]
[323300101,1713881450147,-1293.17,0.00012015,2]
[323300102,1713881450157,-500.0,0.00012015,2]
[323300103,1713881450166,-500.0,0.00012015,2]
[323300104,1713881450175,-2701.96,0.00012055,2]
[323300105,1713881450185,-391.93026171,0.0001209,2]
[323300106,1713881450195,-150.0,0.000121,2]
[323300107,1713881450205,-391.93026171,0.0001214,2]
[323300108,1713881450214,-391.93026171,0.00012189,2]
[323300109,1713881450223,-10000.0,0.00012189,2]
[323300110,1713881450233,-1101.3229315,0.0001219,2]
[323300111,1713881450242,-1101.32293141,0.00012255,2]
[323300112,1713881450252,-1548.01059875,0.00012287,2]
[323300113,1713881450262,-205855.13,0.00012287,2]
[323300114,1713881450271,-29713.87321685,0.00012288,2]
[323300115,1713881450281,-666.88,0.00012288,2]
[323300116,1713881450290,-662.14,0.00012288,2]
[323300117,1713881450300,-500.0,0.00012288,2]
[323300118,1713881450309,-577.85,0.00012288,2]
[323300119,1713881450318,-500.0,0.00012288,2]
[323300120,1713881450327,-1050.42,0.00012288,2]
[323300121,1713881450336,-500.0,0.00012288,2]
[323300122,1713881450346,-500.0,0.00012288,2]
[323300123,1713881450356,-500.0,0.00012288,2]
[323300124,1713881450366,-500.0,0.00012288,2]
[323300125,1713881450376,-1187.22,0.00012288,2]
[323300126,1713881450385,-500.0,0.00012288,2]
[323300127,1713881450395,-528.44,0.00012288,2]
[323300128,1713881450405,-760.45,0.00012288,2]
[323300129,1713881450414,-500.0,0.00012288,2]
[323300130,1713881450424,-500.0,0.00012288,2]
[323300131,1713881450433,-734.05,0.00012288,2]
[323300132,1713881450444,-500.0,0.00012288,2]
[323300133,1713881450453,-1036.49,0.00012288,2]
[323300134,1713881450464,-1295.46,0.00012288,2]
[323300135,1713881450474,-565.98,0.00012288,2]
[323300136,1713881450483,-500.0,0.00012288,2]
[323300137,1713881450492,-789.45,0.00012288,2]
[323300138,1713881450502,-500.0,0.00012288,2]
[323300139,1713881450512,-538.42,0.00012288,2]
[323300140,1713881450522,-607.61,0.00012288,2]
[323300141,1713881450531,-500.0,0.00012288,2]
[323300142,1713881450541,-500.0,0.00012288,2]
[323300143,1713881450551,-500.0,0.00012288,2]
[323300144,1713881450561,-500.0,0.00012288,2]
[323300145,1713881450570,-500.0,0.00012288,2]
[323300146,1713881450580,-500.0,0.00012288,2]
[323300147,1713881450589,-18031.79,0.00012288,2]
[323300148,1713881450599,-500.0,0.00012288,2]
[323300149,1713881450608,-1675.53,0.00012288,2]
[323300150,1713881450618,-500.0,0.00012288,2]
[323300151,1713881450627,-500.0,0.00012288,2]
[323300152,1713881450636,-500.0,0.00012288,2]
[323300153,1713881450649,-500.0,0.00012288,2]
[323300154,1713881450659,-500.0,0.00012288,2]
[323300155,1713881450669,-637.12,0.00012288,2]
[323300156,1713881450678,-973.59,0.00012288,2]
[323300157,1713881450689,-500.0,0.00012288,2]
[323300158,1713881450699,-943.17,0.00012288,2]
[323300159,1713881450709,-500.0,0.00012288,2]
[323300160,1713881450721,-500.0,0.00012288,2]
[323300161,1713881450731,-510.52,0.00012288,2]
[323300162,1713881450741,-500.0,0.00012288,2]
[323300163,1713881450752,-850.64,0.00012288,2]
[323300164,1713881450761,-920.78,0.00012288,2]
[323300165,1713881450771,-964.6,0.00012288,2]
[323300166,1713881450780,-500.0,0.00012288,2]
[323300167,1713881450790,-997.19,0.00012288,2]
[323300168,1713881450799,-500.0,0.00012288,2]
[323300169,1713881450811,-3248.43,0.00012288,2]
[323300170,1713881450820,-500.0,0.00012288,2]
[323300171,1713881450830,-500.0,0.00012288,2]
[323300172,1713881450839,-500.0,0.00012288,2]
[323300173,1713881450849,-500.0,0.00012288,2]
[323300174,1713881450859,-1034.34,0.00012288,2]
[323300175,1713881450868,-500.0,0.00012288,2]
[323300176,1713881450878,-927.86,0.00012288,2]
[323300177,1713881450888,-596.99,0.00012288,2]
[323300178,1713881450898,-1714.59,0.00012288,2]
[323300179,1713881450907,-500.0,0.00012288,2]
[323300180,1713881450917,-500.0,0.00012288,2]
[323300181,1713881450927,-818.02,0.00012288,2]
[323300182,1713881450937,-500.0,0.00012288,2]
[323300183,1713881450947,-2482.34,0.00012288,2]
[323300184,1713881450957,-739.14,0.00012288,2]
[323300185,1713881450967,-500.0,0.00012288,2]
[323300186,1713881450976,-500.0,0.00012288,2]
[323300187,1713881450985,-758.84,0.00012288,2]
[323300188,1713881450995,-600.11,0.00012288,2]
[323300189,1713881451009,-500.0,0.00012288,2]
[323300190,1713881451019,-500.0,0.00012288,2]
[323300191,1713881451029,-500.0,0.00012288,2]
[323300192,1713881451038,-2819.73,0.00012288,2]
[323300193,1713881451047,-500.0,0.00012288,2]
[323300194,1713881451057,-500.0,0.00012288,2]
[323300195,1713881451069,-513.53,0.00012288,2]
[323300196,1713881451080,-500.0,0.00012288,2]
[323300197,1713881451089,-500.0,0.00012288,2]
[323300198,1713881451099,-500.0,0.00012288,2]
[323300199,1713881451109,-8226.17,0.00012288,2]
[323300200,1713881451118,-500.0,0.00012288,2]
[323300201,1713881451129,-623.66,0.00012288,2]
[323300202,1713881451138,-500.0,0.00012288,2]
[323300203,1713881451148,-500.0,0.00012288,2]
[323300204,1713881451158,-500.0,0.00012288,2]
[323300205,1713881451167,-3484.06,0.00012288,2]
[323300206,1713881451177,-4578.03,0.00012288,2]
[323300207,1713881451186,-594.2,0.00012288,2]
[323300208,1713881451195,-1107.93,0.00012288,2]
[323300209,1713881451205,-500.0,0.00012288,2]
[323300210,1713881451218,-1222.39,0.00012288,2]
[323300211,1713881451228,-1631.22,0.00012288,2]
[323300212,1713881451238,-1351.92,0.00012288,2]
[323300213,1713881451247,-690.72,0.00012288,2]
[323300214,1713881451260,-2048.47,0.00012288,2]
[323300215,1713881451270,-543.96,0.00012288,2]
[323300216,1713881451280,-1991.2,0.00012288,2]
[323300217,1713881451289,-500.0,0.00012288,2]
[323300218,1713881451299,-566.56,0.00012288,2]
[323300219,1713881451309,-1556.31,0.00012288,2]
[323300220,1713881451318,-787.33,0.00012288,2]
[323300221,1713881451327,-525.36,0.00012288,2]
[323300222,1713881451337,-2005.8,0.00012288,2]
[323300223,1713881451347,-4410.99,0.00012288,2]
[323300224,1713881451356,-861.88,0.00012288,2]
[323300225,1713881451366,-608.66,0.00012288,2]
[323300226,1713881451375,-1825.57,0.00012288,2]
[323300227,1713881451385,-1010.39,0.00012288,2]
[323300228,1713881451395,-500.0,0.00012288,2]
[323300229,1713881451404,-887.5,0.00012288,2]
[323300230,1713881451415,-2165.36,0.00012288,2]
[323300231,1713881451424,-577.41,0.00012288,2]
[323300232,1713881451434,-500.0,0.00012288,2]
[323300233,1713881451444,-500.0,0.00012288,2]
[323300234,1713881451454,-500.0,0.00012288,2]
[323300235,1713881451464,-500.0,0.00012288,2]
[323300236,1713881451474,-500.0,0.00012288,2]
[323300237,1713881451483,-500.0,0.00012288,2]
[323300238,1713881451493,-637.33,0.00012288,2]
[323300239,1713881451505,-500.0,0.00012288,2]
[323300240,1713881451516,-1071.26,0.00012288,2]
[323300241,1713881451526,-6002.69,0.00012288,2]
[323300242,1713881451537,-3004.50780047,0.00012289,2]
[323300243,1713881451547,-1350.58342616,0.00012289,2]
[323300244,1713881451557,-596.78,0.00012289,2]
[323300245,1713881451567,-500.0,0.00012289,2]
[323300246,1713881451577,-500.0,0.00012289,2]
[323300247,1713881451587,-500.0,0.00012289,2]
[323300248,1713881451597,-500.0,0.00012289,2]
[323300249,1713881451607,-263.37,0.00012289,2]
[323300250,1713881451617,-500.0,0.00012289,2]
[323300251,1713881451627,-299.4,0.00012289,2]
[323300252,1713881451637,-500.0,0.00012289,2]
[323300253,1713881451651,-772.48,0.00012289,2]
[323300254,1713881451661,-500.0,0.00012289,2]
[323300255,1713881451671,-500.0,0.00012289,2]
[323300256,1713881451681,-500.0,0.00012289,2]
[323300257,1713881451691,-500.0,0.00012289,2]
[323300258,1713881451701,-500.0,0.00012289,2]
[323300259,1713881451711,-500.0,0.00012289,2]
[323300260,1713881451721,-500.0,0.00012289,2]
[323300261,1713881451731,-632.04985884,0.00012289,2]
[323300262,1713881451741,-500.0,0.00012289,2]
[323300263,1713881451755,-249.05,0.00012289,2]
[323300264,1713881451765,-500.0,0.00012289,2]
[323300265,1713881451775,-501.37,0.00012289,2]
[323300266,1713881451785,-500.0,0.00012289,2]
[323300267,1713881451795,-500.0,0.00012289,2]
[323300268,1713881451805,-500.0,0.00012289,2]
[323300269,1713881451815,-500.0,0.00012289,2]
[323300270,1713881451825,-824.72,0.00012289,2]
[323300271,1713881451836,-500.0,0.00012289,2]
[323300272,1713881451846,-500.0,0.00012289,2]
[323300273,1713881451856,-500.0,0.00012289,2]
[323300274,1713881451865,-500.0,0.00012289,2]
[323300275,1713881451875,-500.0,0.00012289,2]
[323300276,1713881451885,-500.0,0.00012289,2]
[323300277,1713881451895,-500.0,0.00012289,2]
[323300278,1713881451906,-1172.37,0.00012289,2]
[323300279,1713881451916,-500.0,0.00012289,2]
[323300280,1713881451925,-535.55,0.00012289,2]
[323300281,1713881451935,-507.69,0.00012289,2]
[323300282,1713881451945,-208.15,0.00012289,2]
[323300283,1713881451955,-500.0,0.00012289,2]
[323300284,1713881451965,-500.0,0.00012289,2]
[323300285,1713881451975,-500.0,0.00012289,2]
[323300286,1713881451986,-500.0,0.00012289,2]
[323300287,1713881451996,-467.87,0.00012289,2]
[323300288,1713881452007,-500.0,0.00012289,2]
[323300289,1713881452018,-781.53,0.00012289,2]
[323300290,1713881452027,-295.05,0.00012289,2]
[323300291,1713881452037,-500.0,0.00012289,2]
[323300292,1713881452047,-780.47,0.00012289,2]
[323300293,1713881452057,-500.0,0.00012289,2]
[323300294,1713881452067,-500.0,0.00012289,2]
[323300295,1713881452077,-599.15,0.00012289,2]
[323300296,1713881452087,-500.0,0.00012289,2]
[323300297,1713881452096,-500.0,0.00012289,2]
[323300298,1713881452106,-500.0,0.00012289,2]
[323300299,1713881452116,-578.87,0.00012289,2]
[323300300,1713881452126,-744.94,0.00012289,2]
[323300301,1713881452137,-500.0,0.00012289,2]
[323300302,1713881452147,-500.0,0.00012289,2]
[323300303,1713881452157,-723.83,0.00012289,2]
[323300304,1713881452167,-500.0,0.00012289,2]
[323300305,1713881452177,-500.0,0.00012289,2]
[323300306,1713881452187,-500.0,0.00012289,2]
[323300307,1713881452197,-711.07,0.00012289,2]
[323300308,1713881452207,-500.0,0.00012289,2]
[323300309,1713881452217,-500.0,0.00012289,2]
[323300310,1713881452227,-500.0,0.00012289,2]
[323300311,1713881452237,-500.0,0.00012289,2]
[323300312,1713881452247,-500.0,0.00012289,2]
[323300313,1713881452261,-500.0,0.00012289,2]
[323300314,1713881452270,-500.0,0.00012289,2]
[323300315,1713881452280,-559.2,0.00012289,2]
[323300316,1713881452290,-500.0,0.00012289,2]
[323300317,1713881452300,-500.0,0.00012289,2]
[323300318,1713881452310,-500.0,0.00012289,2]
[323300319,1713881452319,-500.0,0.00012289,2]
[323300320,1713881452329,-500.0,0.00012289,2]
[323300321,1713881452339,-500.0,0.00012289,2]
[323300322,1713881452349,-500.0,0.00012289,2]
[323300323,1713881452358,-500.0,0.00012289,2]
[323300324,1713881452368,-500.0,0.00012289,2]
[323300325,1713881452378,-500.0,0.00012289,2]
[323300326,1713881452388,-500.0,0.00012289,2]
[323300327,1713881452399,-500.0,0.00012289,2]
[323300328,1713881452409,-500.0,0.00012289,2]
[323300329,1713881452419,-500.0,0.00012289,2]
[323300330,1713881452430,-500.0,0.00012289,2]
[323300331,1713881452439,-500.0,0.00012289,2]
[323300332,1713881452449,-500.0,0.00012289,2]
[323300333,1713881452459,-500.0,0.00012289,2]
[323300334,1713881452469,-500.0,0.00012289,2]
[323300335,1713881452479,-450.34,0.00012289,2]
[323300336,1713881452490,-578.36,0.00012289,2]
[323300337,1713881452500,-216.49,0.00012289,2]
[323300338,1713881452512,-500.0,0.00012289,2]
[323300339,1713881452522,-500.0,0.00012289,2]
[323300340,1713881452531,-500.0,0.00012289,2]
[323300341,1713881452542,-562.49,0.00012289,2]
[323300342,1713881452553,-500.0,0.00012289,2]
[323300343,1713881452563,-592.6,0.00012289,2]
[323300344,1713881452573,-500.0,0.00012289,2]
[323300345,1713881452583,-500.0,0.00012289,2]
[323300346,1713881452593,-614.6,0.00012289,2]
[323300347,1713881452603,-557.19419628,0.00012289,2]
[323300348,1713881452613,-776.76,0.00012289,2]
[323300349,1713881452624,-740.69,0.00012289,2]
[323300350,1713881452634,-396.66,0.00012289,2]
[323300351,1713881452644,-153.61,0.00012289,2]
[323300352,1713881452655,-500.0,0.00012289,2]
[323300353,1713881452666,-500.0,0.00012289,2]
[323300354,1713881452676,-500.0,0.00012289,2]
[323300355,1713881452687,-521.9,0.00012289,2]
[323300356,1713881452697,-500.0,0.00012289,2]
[323300357,1713881452707,-500.0,0.00012289,2]
[323300358,1713881452717,-637.38,0.00012289,2]
[323300359,1713881452727,-500.0,0.00012289,2]
[323300360,1713881452737,-500.0,0.00012289,2]
[323300361,1713881452747,-544.33,0.00012289,2]
[323300362,1713881452762,-500.0,0.00012289,2]
[323300363,1713881452773,-500.0,0.00012289,2]
[323300364,1713881452783,-500.0,0.00012289,2]
[323300365,1713881452793,-500.0,0.00012289,2]
[323300366,1713881452804,-500.0,0.00012289,2]
[323300367,1713881452814,-500.0,0.00012289,2]
[323300368,1713881452824,-500.0,0.00012289,2]
[323300369,1713881452836,-721.15,0.00012289,2]
[323300370,1713881452846,-500.0,0.00012289,2]
[323300371,1713881452856,-500.0,0.00012289,2]
[323300372,1713881452868,-571.29117692,0.00012289,2]
[323300373,1713881452878,-500.0,0.00012289,2]
[323300374,1713881452888,-274.08,0.00012289,2]
[323300375,1713881452898,-500.0,0.00012289,2]
[323300376,1713881452909,-500.0,0.00012289,2]
[323300377,1713881452920,-500.0,0.00012289,2]
[323300378,1713881452930,-596.19,0.00012289,2]
[323300379,1713881452945,-500.0,0.00012289,2]
[323300380,1713881452955,-500.0,0.00012289,2]
[323300381,1713881452966,-1193.26,0.00012289,2]
[323300382,1713881452976,-500.0,0.00012289,2]
[323300383,1713881452986,-576.19,0.00012289,2]
[323300384,1713881452996,-859.52,0.00012289,2]
[323300385,1713881453009,-500.0,0.00012289,2]
[323300386,1713881453019,-895.75,0.00012289,2]
[323300387,1713881453028,-214.4,0.00012289,2]
[323300388,1713881453038,-2000.94,0.00012289,2]
[323300389,1713881453049,-500.0,0.00012289,2]
[323300390,1713881453059,-1599.82,0.00012289,2]
[323300391,1713881453069,-682.14,0.00012289,2]
[323300392,1713881453080,-500.0,0.00012289,2]
[323300393,1713881453090,-572.6936271,0.00012289,2]
[323300394,1713881453099,-500.0,0.00012289,2]
[323300395,1713881453109,-700.38,0.00012289,2]
[323300396,1713881453119,-8995.29,0.00012289,2]
[323300397,1713881453130,-500.0,0.00012289,2]
[323300398,1713881453140,-551.24,0.00012289,2]
[323300399,1713881453150,-504.84,0.00012289,2]
[323300400,1713881453160,-500.0,0.00012289,2]
[323300401,1713881453170,-796.76,0.00012289,2]
[323300402,1713881453180,-500.0,0.00012289,2]
[323300403,1713881453191,-21121.8,0.00012289,2]
[323300404,1713881453201,-628.34937423,0.00012289,2]
[323300405,1713881453432,-500.0,0.00012289,2]
[323300406,1713881453441,-500.0,0.00012289,2]
[323300407,1713881453451,-500.0,0.00012289,2]
[323300408,1713881453461,-1009.56,0.00012289,2]
[323300409,1713881453470,-500.0,0.00012289,2]
[323300410,1713881453480,-500.0,0.00012289,2]
[323300411,1713881453490,-765.59,0.00012289,2]
[323300412,1713881453500,-2492.2,0.00012289,2]
[323300413,1713881453511,-500.0,0.00012289,2]
[323300414,1713881453521,-500.0,0.00012289,2]
[323300415,1713881453530,-508.32,0.00012289,2]
[323300416,1713881453540,-1145.23,0.00012289,2]
[323300417,1713881453549,-500.0,0.00012289,2]
[323300418,1713881453561,-194.52,0.00012289,2]
[323300419,1713881453570,-1230.19,0.00012289,2]
[323300420,1713881453580,-500.0,0.00012289,2]
[323300421,1713881453589,-757.79,0.00012289,2]
[323300422,1713881453598,-500.0,0.00012289,2]
[323300423,1713881453608,-500.0,0.00012289,2]
[323300424,1713881453618,-500.0,0.00012289,2]
[323300425,1713881453628,-666.5,0.00012289,2]
[323300426,1713881453638,-500.0,0.00012289,2]
[323300427,1713881453650,-500.0,0.00012289,2]
[323300428,1713881453660,-500.0,0.00012289,2]
[323300429,1713881453671,-500.0,0.00012289,2]
[323300430,1713881453680,-500.0,0.00012289,2]
[323300431,1713881453691,-500.0,0.00012289,2]
[323300432,1713881453699,-1000.0,0.00012289,2]
[323300433,1713881453709,-973.37,0.00012289,2]
[323300434,1713881453719,-558.76,0.00012289,2]
[323300435,1713881453730,-500.0,0.00012289,2]
[323300436,1713881453740,-521.67,0.00012289,2]
[323300437,1713881453750,-500.0,0.00012289,2]
[323300438,1713881453761,-500.0,0.00012289,2]
[323300439,1713881453770,-500.0,0.00012289,2]
[323300440,1713881453780,-500.0,0.00012289,2]
[323300441,1713881453789,-500.0,0.00012289,2]
[323300442,1713881453799,-500.0,0.00012289,2]
[323300443,1713881453808,-500.0,0.00012289,2]
[323300444,1713881453817,-500.0,0.00012289,2]
[323300445,1713881453827,-1465.1,0.00012289,2]
[323300446,1713881453836,-500.0,0.00012289,2]
[323300447,1713881453846,-500.0,0.00012289,2]
[323300448,1713881453855,-500.0,0.00012289,2]
[323300449,1713881453865,-1495.47,0.00012289,2]
[323300450,1713881453874,-500.0,0.00012289,2]
[323300451,1713881453884,-1679.97,0.00012289,2]
[323300452,1713881453893,-500.0,0.00012289,2]
[323300453,1713881453903,-500.0,0.00012289,2]
[323300454,1713881453914,-500.0,0.00012289,2]
[323300455,1713881453923,-500.0,0.00012289,2]
[323300456,1713881453932,-500.0,0.00012289,2]
[323300457,1713881453942,-599.57,0.00012289,2]
[323300458,1713881453951,-568.04,0.00012289,2]
[323300459,1713881453960,-500.0,0.00012289,2]
[323300460,1713881453969,-500.0,0.00012289,2]
[323300461,1713881453979,-500.0,0.00012289,2]
[323300462,1713881453988,-500.0,0.00012289,2]
[323300463,1713881453998,-500.0,0.00012289,2]
[323300464,1713881454008,-500.0,0.00012289,2]
[323300465,1713881454018,-500.0,0.00012289,2]
[323300466,1713881454027,-1293.17,0.00012289,2]
[323300467,1713881454036,-500.0,0.00012289,2]
[323300468,1713881454046,-500.0,0.00012289,2]
[323300469,1713881454055,-1000.0,0.000123,2]
[323300470,1713881454065,-455.78271799,0.000123,2]
[323300471,1713881454074,-1101.32293141,0.00012319,2]
[323300472,1713881454084,-1101.32293141,0.00012384,2]
[323300473,1713881454093,-352.0,0.000124,2]
[323300474,1713881454102,-1000.0,0.000124,2]
[323300475,1713881454111,-222.0,0.000124,2]
[323300476,1713881454121,-1101.32293141,0.00012448,2]
[323300477,1713881454131,-251.6194917,0.000125,2]
[323300478,1713881454141,-1000.0,0.000125,2]
[323300479,1713881454150,-1009.0,0.000125,2]
[323300480,1713881454160,-1000.0,0.000125,2]
[323300481,1713881454169,-1000.0,0.000125,2]
[323300482,1713881454178,-1000.0,0.000125,2]
[323300483,1713881454187,-1101.32293141,0.00012513,2]
[323300484,1713881454197,-150.0,0.00012546,2]
[323300485,1713881454206,-150.0,0.00012557,2]
[323300486,1713881454215,-150.0,0.00012559,2]
[323300487,1713881454224,-937.0,0.00012562,2]
[323300488,1713881454233,-3203.73333038,0.00012562,2]
[323300489,1713881454243,-666.88,0.00012562,2]
[323300490,1713881454252,-662.14,0.00012562,2]
[323300491,1713881454264,-500.0,0.00012562,2]
[323300492,1713881454274,-577.85,0.00012562,2]
[323300493,1713881454283,-500.0,0.00012562,2]
[323300494,1713881454292,-1050.42,0.00012562,2]
[323300495,1713881454302,-500.0,0.00012562,2]
[323300496,1713881454311,-500.0,0.00012562,2]
[323300497,1713881454320,-500.0,0.00012562,2]
[323300498,1713881454329,-500.0,0.00012562,2]
[323300499,1713881454338,-1187.22,0.00012562,2]
[323300500,1713881454347,-500.0,0.00012562,2]
[323300501,1713881454356,-528.44,0.00012562,2]
[323300502,1713881454366,-760.45,0.00012562,2]
[323300503,1713881454375,-500.0,0.00012562,2]
[323300504,1713881454384,-500.0,0.00012562,2]
[323300505,1713881454393,-734.05,0.00012562,2]
[323300506,1713881454402,-500.0,0.00012562,2]
[323300507,1713881454412,-1036.49,0.00012562,2]
[323300508,1713881454421,-1295.46,0.00012562,2]
[323300509,1713881454430,-565.98,0.00012562,2]
[323300510,1713881454440,-500.0,0.00012562,2]
[323300511,1713881454449,-789.45,0.00012562,2]
[323300512,1713881454458,-500.0,0.00012562,2]
[323300513,1713881454467,-538.42,0.00012562,2]
[323300514,1713881454476,-607.61,0.00012562,2]
[323300515,1713881454485,-500.0,0.00012562,2]
[323300516,1713881454495,-500.0,0.00012562,2]
[323300517,1713881454507,-500.0,0.00012562,2]
[323300518,1713881454516,-500.0,0.00012562,2]
[323300519,1713881454526,-500.0,0.00012562,2]
[323300520,1713881454535,-500.0,0.00012562,2]
[323300521,1713881454544,-18031.79,0.00012562,2]
[323300522,1713881454554,-500.0,0.00012562,2]
[323300523,1713881454563,-1675.53,0.00012562,2]
[323300524,1713881454573,-500.0,0.00012562,2]
[323300525,1713881454583,-500.0,0.00012562,2]
[323300526,1713881454592,-500.0,0.00012562,2]
[323300527,1713881454601,-325.83400655,0.00012562,2]
[323300528,1713881454610,-500.0,0.00012562,2]
[323300529,1713881454619,-637.12,0.00012562,2]
[323300530,1713881454628,-973.59,0.00012562,2]